lending/lending_fUSD_20241120
["ID","MTS","AMOUNT","RATE_DAILY","PERIOD"]
[342793416,1732140836971,-500.0,0.00059178,120]
[342793417,1732140836987,-463.05178424,0.00059178,120]
[342793418,1732140837003,-500.08,0.00059178,120]
[342793419,1732140837018,-2539.87,0.00059178,120]
[342793420,1732140837034,-500.0,0.00059178,120]
[342793421,1732140837049,-500.0,0.00059178,120]
[342793422,1732140837064,-831.36,0.00059178,120]
[342793423,1732140837082,-1743.89,0.00059178,120]
[342793424,1732140837098,-500.0,0.00059178,120]
[342793425,1732140837114,-1365.28,0.00059178,120]
[342793426,1732140837131,-1229.75,0.00059178,120]
[342793427,1732140837148,-1290.22,0.00059178,120]
[342793428,1732140837164,-507.82,0.00059178,120]
[342793429,1732140837180,-3045.72,0.00059178,120]
[342793430,1732140837197,-916.6,0.00059178,120]
[342793431,1732140837211,-500.0,0.00059178,120]
[342793432,1732140837228,-610.75,0.00059178,120]
[342793433,1732140837243,-500.0,0.00059178,120]
[342793434,1732140837259,-502.86,0.00059178,120]
[342793435,1732140837276,-504.52,0.00059178,120]
[342793436,1732140837291,-1278.95,0.00059178,120]
[342793437,1732140837308,-702.18,0.00059178,120]
[342793438,1732140837322,-500.0,0.00059178,120]
[342793439,1732140837339,-3583.6,0.00059178,120]
[342793440,1732140837359,-1685.95,0.00059178,120]
[342793441,1732140837377,-5689.68,0.00059178,120]
[342793442,1732140837392,-1343.23,0.00059178,120]
[342793443,1732140837408,-553.27,0.00059178,120]
[342793444,1732140837423,-1250.26,0.00059178,120]
[342793445,1732140837439,-982.33,0.00059178,120]
[342793446,1732140837454,-500.0,0.00059178,120]
[342793447,1732140837469,-667.62,0.00059178,120]
[342793448,1732140837484,-342.3341426,0.00059178,120]
[342793449,1732140837499,-500.0,0.00059178,120]
[342793450,1732140837512,-609.95,0.00059178,120]
[342793451,1732140837528,-500.0,0.00059178,120]
[342793452,1732140837543,-808.05,0.00059178,120]
[342793453,1732140837558,-522.08,0.00059178,120]
[342793454,1732140837573,-1111.01,0.00059178,120]
[342793455,1732140837588,-671.78,0.00059178,120]
[342793456,1732140837604,-192.46577001,0.00059178,120]
[342793457,1732140837620,-1704.12,0.00059178,120]
[342793458,1732140837635,-2102.13,0.00059178,120]
[342793459,1732140837651,-500.0,0.00059178,120]
[342793460,1732140837666,-907.83,0.00059178,120]
[342793461,1732140837681,-500.0,0.00059178,120]
[342793462,1732140837696,-1034.91,0.00059178,120]
[342793463,1732140837712,-500.0,0.00059178,120]
[342793464,1732140837728,-5007.0,0.00059178,120]
[342793465,1732140837743,-675.74,0.00059178,120]
[342793466,1732140837758,-2296.76,0.00059178,20]
[342793467,1732140837774,-500.0,0.00059178,120]
[342793468,1732140837789,-500.0,0.00059178,120]
[342793469,1732140837803,-251.54558831,0.00059178,120]
[342793470,1732140837819,-798.21,0.00059178,120]
[342793471,1732140837833,-647.62,0.00059178,120]
[342793472,1732140837849,-2489.82,0.00059178,120]
[342793473,1732140837864,-2045.61,0.00059178,120]
[342793474,1732140837879,-500.0,0.00059178,120]
[342793475,1732140837895,-1208.94,0.00059178,120]
[342793476,1732140837910,-500.0,0.00059178,120]
[342793477,1732140837926,-721.64,0.00059178,120]
[342793478,1732140837941,-972.27,0.00059178,120]
[342793479,1732140837955,-1591.78,0.00059178,120]
[342793480,1732140837970,-1887.72,0.00059178,120]
[342793481,1732140837988,-500.0,0.00059178,120]
[342793482,1732140838003,-850.0,0.00059178,120]
[342793483,1732140838019,-852.01,0.00059178,120]
[342793484,1732140838034,-872.84,0.00059178,120]
[342793485,1732140838050,-500.0,0.00059178,120]
[342793486,1732140838065,-846.36,0.00059178,120]
[342793487,1732140838079,-865.82,0.00059178,120]
[342793488,1732140838095,-1191.88,0.00059178,120]
[342793489,1732140838109,-5749.44,0.00059178,120]
[342793490,1732140838125,-500.0,0.00059178,120]
[342793491,1732140838140,-500.0,0.00059178,120]
[342793492,1732140838155,-483.2184457,0.00059178,120]
[342793493,1732140838170,-706.66,0.00059178,120]
[342793494,1732140838188,-1792.7,0.00059178,120]
[342793495,1732140838202,-669.11,0.00059178,120]
[342793496,1732140838216,-571.98,0.00059178,120]
[342793497,1732140838232,-688.41,0.00059178,120]
[342793498,1732140838247,-710.75,0.00059178,120]
[342793499,1732140838261,-2203.93,0.00059178,120]
[342793500,1732140838279,-600.76,0.00059178,120]
[342793501,1732140838292,-1092.67,0.00059178,120]
[342793502,1732140838308,-723.74,0.00059178,120]
[342793503,1732140838322,-962.75,0.00059178,120]
[342793504,1732140838337,-988.55,0.00059178,120]
[342793505,1732140838351,-690.54,0.00059178,120]
[342793506,1732140838367,-2304.78,0.00059178,120]
[342793507,1732140838381,-843.9,0.00059178,120]
[342793508,1732140838397,-603.23561786,0.00059178,120]
[342793509,1732140838412,-1647.87,0.00059178,120]
[342793510,1732140838427,-850.55,0.00059178,120]
[342793511,1732140838442,-809.67,0.00059178,120]
[342793512,1732140838457,-683.97,0.00059178,120]
[342793513,1732140838472,-834.1,0.00059178,120]
[342793514,1732140838486,-914.77,0.00059178,120]
[342793515,1732140838501,-1141.14,0.00059178,120]
[342793516,1732140838516,-500.0,0.00059178,120]
[342793517,1732140838532,-624.59,0.00059178,120]
[342793518,1732140838548,-1109.8,0.00059178,120]
[342793519,1732140838562,-1752.52,0.00059178,120]
[342793520,1732140838578,-1096.46,0.00059178,120]
[342793521,1732140838592,-950.07,0.00059178,120]
[342793522,1732140838608,-1422.3,0.00059178,120]
[342793523,1732140838623,-2142.92,0.00059178,120]
[342793524,1732140838638,-829.0,0.00059178,120]
[342793525,1732140838653,-575.3,0.00059178,120]
[342793526,1732140838667,-500.0,0.00059178,120]
[342793527,1732140838683,-737.82,0.00059178,120]
[342793528,1732140838699,-666.21,0.00059178,120]
[342793529,1732140838714,-1778.99,0.00059178,120]
[342793530,1732140838728,-1715.56,0.00059178,120]
[342793531,1732140838743,-527.64980344,0.00059178,120]
[342793532,1732140838759,-1062.65,0.00059178,120]
[342793533,1732140838776,-500.0,0.00059178,120]
[342793534,1732140838790,-2346.15,0.00059178,120]
[342793535,1732140838804,-949.47,0.00059178,120]
[342793536,1732140838820,-1351.22,0.00059178,120]
[342793537,1732140838834,-888.32,0.00059178,120]
[342793538,1732140838850,-880.81,0.00059178,120]
[342793539,1732140838865,-642.33,0.00059178,120]
[342793540,1732140838881,-597.52,0.00059178,120]
[342793541,1732140838897,-6141.54,0.00059178,120]
[342793542,1732140838912,-1511.19,0.00059178,120]
[342793543,1732140838926,-1086.04,0.00059178,120]
[342793544,1732140838942,-668.34,0.00059178,120]
[342793545,1732140838956,-1492.04,0.00059178,120]
[342793546,1732140838971,-1351.32,0.00059178,120]
[342793547,1732140838986,-926.38,0.00059178,120]
[342793548,1732140839001,-695.0,0.00059178,120]
[342793549,1732140839016,-475.80361993,0.00059178,120]
[342793550,1732140839031,-5287.99,0.00059178,120]
[342793551,1732140839046,-845.23,0.00059178,120]
[342793552,1732140839061,-1482.2,0.00059178,120]
[342793553,1732140839074,-1260.12,0.00059178,120]
[342793554,1732140839088,-1283.29,0.00059178,120]
[342793555,1732140839103,-1393.35,0.00059178,120]
[342793556,1732140839118,-500.0,0.00059178,120]
[342793557,1732140839134,-500.0,0.00059178,120]
[342793558,1732140839148,-500.0,0.00059178,120]
[342793559,1732140839162,-2642.2,0.00059178,120]
[342793560,1732140839180,-1536.4,0.00059178,120]
[342793561,1732140839194,-3168.55,0.00059178,120]
[342793562,1732140839208,-500.0,0.00059178,120]
[342793563,1732140839223,-827.35,0.00059178,120]
[342793564,1732140839238,-500.0,0.00059178,120]
[342793565,1732140839252,-1702.89,0.00059178,120]
[342793566,1732140839267,-641.78,0.00059178,120]
[342793567,1732140839290,-1344.44,0.00059178,120]
[342793568,1732140839304,-1090.73,0.00059178,120]
[342793569,1732140839320,-52850.67,0.00059178,120]
[342793570,1732140839335,-1753.45,0.00059178,120]
[342793571,1732140839350,-1064.88,0.00059178,120]
[342793572,1732140839364,-1006.78,0.00059178,120]
[342793573,1732140839378,-500.0,0.00059178,120]
[342793574,1732140839393,-622.97,0.00059178,120]
[342793575,1732140839825,-3042.17,0.00059178,120]
[342793576,1732140839871,-1736.39,0.00059178,120]
[342793577,1732140839894,-2339.16,0.00059178,120]
[342793578,1732140839904,-700.57,0.00059178,120]
[342793579,1732140839913,-585.35,0.00059178,120]
[342793580,1732140839923,-1522.74,0.00059178,120]
[342793581,1732140839932,-2627.11,0.00059178,120]
[342793582,1732140839942,-1766.0,0.00059178,120]
[342793583,1732140839951,-693.99,0.00059178,120]
[342793584,1732140839961,-5335.95,0.00059178,120]
[342793585,1732140839970,-973.18,0.00059178,120]
[342793586,1732140839980,-500.0,0.00059178,120]
[342793587,1732140839990,-333.75490627,0.00059178,120]
[342793588,1732140839999,-778.26,0.00059178,120]
[342793589,1732140840009,-523.5,0.00059178,120]
[342793590,1732140840021,-418.55925606,0.00059178,120]
[342793591,1732140840031,-561.95,0.00059178,120]
[342793592,1732140840041,-868.31,0.00059178,120]
[342793593,1732140840050,-1122.37,0.00059178,120]
[342793594,1732140840060,-400.36,0.00059178,7]
[342793595,1732140840070,-620.69,0.00059178,120]
[342793596,1732140840079,-1223.49,0.00059178,120]
[342793597,1732140840088,-500.0,0.00059178,120]
[342793598,1732140840098,-1516.54,0.00059178,120]
[342793599,1732140840107,-1041.7,0.00059178,120]
[342793600,1732140840116,-4704.32,0.00059178,120]
[342793601,1732140840126,-500.0,0.00059178,120]
[342793602,1732140840135,-1384.57,0.00059178,120]
[342793603,1732140840144,-1309.89,0.00059178,120]
[342793604,1732140840154,-525.76,0.00059178,120]
[342793605,1732140840164,-500.0,0.00059178,120]
[342793606,1732140840174,-2012.7,0.00059178,120]
[342793607,1732140840190,-2257.06,0.00059178,120]
[342793608,1732140840201,-500.0,0.00059178,120]
[342793609,1732140840211,-500.0,0.00059178,120]
[342793610,1732140840221,-656.82,0.00059178,120]
[342793611,1732140840230,-1047.88,0.00059178,120]
[342793612,1732140840241,-1177.9,0.00059178,120]
[342793613,1732140840251,-1603.42,0.00059178,120]
[342793614,1732140840261,-1567.54,0.00059178,120]
[342793615,1732140840272,-834.44,0.00059178,120]
[342793616,1732140840282,-500.0,0.00059178,120]
[342793617,1732140840291,-2004.44,0.00059178,120]
[342793618,1732140840302,-500.0,0.00059178,120]
[342793619,1732140840312,-1050.71,0.00059178,120]
[342793620,1732140840322,-1803.54,0.00059178,120]
[342793621,1732140840331,-650.66,0.00059178,120]
[342793622,1732140840340,-516.91,0.00059178,120]
[342793623,1732140840350,-500.0,0.00059178,120]
[342793624,1732140840359,-500.0,0.00059178,120]
[342793625,1732140840369,-950.3,0.00059178,120]
[342793626,1732140840378,-4162.19,0.00059178,120]
[342793627,1732140840388,-729.88,0.00059178,120]
[342793628,1732140840398,-1325.24,0.00059178,120]
[342793629,1732140840408,-1437.64,0.00059178,120]
[342793630,1732140840417,-951.19,0.00059178,120]
[342793631,1732140840428,-739.2,0.00059178,120]
[342793632,1732140840438,-711.16,0.00059178,120]
[342793633,1732140840447,-35063.23,0.00059178,120]
[342793634,1732140840457,-758.38,0.00059178,120]
[342793635,1732140840466,-500.0,0.00059178,120]
[342793636,1732140840476,-1066.88,0.00059178,120]
[342793637,1732140840485,-604.09,0.00059178,120]
[342793638,1732140840495,-500.0,0.00059178,120]
[342793639,1732140840504,-1309.97,0.00059178,120]
[342793640,1732140840513,-516.9,0.00059178,120]
[342793641,1732140840526,-1271.19,0.00059178,120]
[342793642,1732140840536,-1776.53,0.00059178,120]
[342793643,1732140840546,-1055.78,0.00059178,120]
[342793644,1732140840556,-2027.31,0.00059178,120]
[342793645,1732140840565,-2957.46,0.00059178,120]
[342793646,1732140840576,-3450.26,0.00059178,120]
[342793647,1732140840586,-565.96,0.00059178,120]
[342793648,1732140840595,-1015.77,0.00059178,120]
[342793649,1732140840605,-500.0,0.00059178,120]
[342793650,1732140840615,-5653.29,0.00059178,120]
[342793651,1732140840624,-2531.55,0.00059178,120]
[342793652,1732140840634,-1396.17,0.00059178,120]
[342793653,1732140840643,-699.76,0.00059178,120]
[342793654,1732140840653,-578.1,0.00059178,120]
[342793655,1732140840662,-1045.04,0.00059178,120]
[342793656,1732140840672,-1833.67,0.00059178,120]
[342793657,1732140840682,-500.0,0.00059178,120]
[342793658,1732140840691,-671.36,0.00059178,120]
[342793659,1732140840700,-1250.43,0.00059178,120]
[342793660,1732140840710,-618.56,0.00059178,120]
[342793661,1732140840719,-1529.97,0.00059178,120]
[342793662,1732140840729,-916.63,0.00059178,120]
[342793663,1732140840738,-1979.2,0.00059178,120]
[342793664,1732140840747,-7124.81,0.00059178,120]
[342793665,1732140840757,-1114.64,0.00059178,120]
[342793666,1732140840766,-500.0,0.00059178,120]
[342793667,1732140840777,-1049.5,0.00059178,120]
[342793668,1732140840787,-1449.91,0.00059178,120]
[342793669,1732140840796,-3951.61,0.00059178,120]
[342793670,1732140840805,-2536.25,0.00059178,120]
[342793671,1732140840815,-2472.73,0.00059178,120]
[342793672,1732140840824,-500.0,0.00059178,120]
[342793673,1732140840833,-786.55,0.00059178,120]
[342793674,1732140840843,-4870.15,0.00059178,120]
[342793675,1732140840853,-883.86,0.00059178,120]
[342793676,1732140840862,-4533.42,0.00059178,120]
[342793677,1732140840871,-851.5,0.00059178,120]
[342793678,1732140840881,-636.47,0.00059178,120]
[342793679,1732140840890,-649.34488088,0.00059178,120]
[342793680,1732140840900,-2000.0,0.00059178,30]
[342793681,1732140840909,-1816.21,0.00059178,120]
[342793682,1732140840918,-616.92,0.00059178,120]
[342793683,1732140840927,-1014.23,0.00059178,120]
[342793684,1732140840937,-6811.17,0.00059178,120]
[342793685,1732140840947,-753.95,0.00059178,120]
[342793686,1732140840956,-1332.89,0.00059178,120]
[342793687,1732140840965,-500.0,0.00059178,120]
[342793688,1732140840974,-10722.81,0.00059178,120]
[342793689,1732140840984,-1359.85,0.00059178,120]
[342793690,1732140840994,-2324.44,0.00059178,120]
[342793691,1732140841003,-535.04,0.00059178,120]
[342793692,1732140841013,-4406.16,0.00059178,120]
[342793693,1732140841023,-1128.91,0.00059178,120]
[342793694,1732140841033,-500.0,0.00059178,120]
[342793695,1732140841042,-665.96,0.00059178,120]
[342793696,1732140841052,-980.99,0.00059178,120]
[342793697,1732140841062,-580.64,0.00059178,120]
[342793698,1732140841071,-892.8,0.00059178,120]
[342793699,1732140841080,-1436.75,0.00059178,120]
[342793700,1732140841090,-558.99,0.00059178,120]
[342793701,1732140841099,-778.22,0.00059178,120]
[342793702,1732140841109,-1153.44,0.00059178,7]
[342793703,1732140841118,-3675.23,0.00059178,120]
[342793704,1732140841128,-2548.81,0.00059178,120]
[342793705,1732140841137,-3167.44,0.00059178,120]
[342793706,1732140841146,-2249.83,0.00059178,120]
[342793707,1732140841156,-11179.92,0.00059178,21]
[342793708,1732140841165,-500.0,0.00059178,120]
[342793709,1732140841174,-859.5,0.00059178,120]
[342793710,1732140841189,-922.45,0.00059178,120]
[342793711,1732140841198,-3662.75,0.00059178,120]
[342793712,1732140841209,-1994.35,0.00059178,120]
[342793713,1732140841219,-500.0,0.00059178,120]
[342793714,1732140841229,-1363.9,0.00059178,120]
[342793715,1732140841238,-66449.02,0.00059178,5]
[342793716,1732140841248,-1162.72,0.00059178,120]
[342793717,1732140841261,-1114.06,0.00059178,120]
[342793718,1732140841273,-1815.23,0.00059178,120]
[342793719,1732140841282,-500.0,0.00059178,120]
[342793720,1732140841291,-1159.58,0.00059178,120]
[342793721,1732140841301,-500.0,0.00059178,120]
[342793722,1732140841310,-6111.41,0.00059178,120]
[342793723,1732140841319,-358.78436001,0.00059178,120]
[342793724,1732140841328,-2826.01,0.00059178,120]
[342793725,1732140841337,-1031.65,0.00059178,120]
[342793726,1732140841346,-532.59,0.00059178,120]
[342793727,1732140841356,-553.58,0.00059178,120]
[342793728,1732140841365,-754.16,0.00059178,120]
[342793729,1732140841374,-500.0,0.00059178,120]
[342793730,1732140841383,-3918.3,0.00059178,120]
[342793731,1732140841393,-2233.29,0.00059178,120]
[342793732,1732140841402,-2901.67,0.00059178,120]
[342793733,1732140841411,-687.41,0.00059178,120]
[342793734,1732140841421,-500.0,0.00059178,120]
[342793735,1732140841430,-1140.89,0.00059178,120]
[342793736,1732140841440,-743.27,0.00059178,120]
[342793737,1732140841449,-4798.42,0.00059178,120]
[342793738,1732140841459,-884.65,0.00059178,120]
[342793739,1732140841470,-1609.97,0.00059178,120]
[342793740,1732140841479,-589.18,0.00059178,120]
[342793741,1732140841488,-500.0,0.00059178,120]
[342793742,1732140841499,-548.16,0.00059178,120]
[342793743,1732140841508,-1086.88,0.00059178,120]
[342793744,1732140841517,-725.57,0.00059178,120]
[342793745,1732140841532,-1158.88,0.00059178,120]
[342793746,1732140841545,-842.19,0.00059178,120]
[342793747,1732140841554,-7009.95,0.00059178,120]
[342793748,1732140841564,-2713.37,0.00059178,120]
[342793749,1732140841573,-2674.97,0.00059178,120]
[342793750,1732140841583,-1095.19,0.00059178,120]
[342793751,1732140841592,-3162.29,0.00059178,120]
[342793752,1732140841601,-500.0,0.00059178,120]
[342793753,1732140841611,-6968.45,0.00059178,60]
[342793754,1732140841620,-5192.12,0.00059178,120]
[342793755,1732140841629,-788.84,0.00059178,120]
[342793756,1732140841638,-500.0,0.00059178,120]
[342793757,1732140841649,-4873.91,0.00059178,120]
[342793758,1732140841658,-565.84,0.00059178,120]
[342793759,1732140841668,-736.59,0.00059178,120]
[342793760,1732140841677,-778.41,0.00059178,120]
[342793761,1732140841687,-2123.81,0.00059178,120]
[342793762,1732140841698,-1135.51,0.00059178,120]
[342793763,1732140841708,-801.02,0.00059178,120]
[342793764,1732140841718,-1176.11,0.00059178,120]
[342793765,1732140841727,-6444.84,0.00059178,120]
[342793766,1732140841737,-840.5,0.00059178,120]
[342793767,1732140841746,-1149.75,0.00059178,120]
[342793768,1732140841755,-538.19,0.00059178,120]
[342793769,1732140841765,-1918.75,0.00059178,120]
[342793770,1732140841776,-527.39,0.00059178,120]
[342793771,1732140841785,-846.33,0.00059178,120]
[342793772,1732140841794,-613.35,0.00059178,120]
[342793773,1732140841803,-655.97,0.00059178,120]
[342793774,1732140841812,-1437.44,0.00059178,120]
[342793775,1732140841821,-1217.61,0.00059178,120]
[342793776,1732140841830,-7358.45,0.00059178,120]
[342793777,1732140841840,-1149.18,0.00059178,120]
[342793778,1732140841848,-924.66,0.00059178,120]
[342793779,1732140841858,-1147.11,0.00059178,120]
[342793780,1732140841866,-1368.4,0.00059178,120]
[342793781,1732140841875,-1974.94,0.00059178,120]
[342793782,1732140841885,-407.32,0.00059178,120]
[342793783,1732140841893,-13034.59,0.00059178,120]
[342793784,1732140841902,-2237.64,0.00059178,120]
[342793785,1732140841911,-17457.35,0.00059178,120]
[342793786,1732140841920,-2737.65,0.00059178,120]
[342793787,1732140841929,-551.05,0.00059178,120]
[342793788,1732140841938,-500.0,0.00059178,120]
[342793789,1732140841946,-2479.1,0.00059178,120]
[342793790,1732140841956,-500.0,0.00059178,120]
[342793791,1732140841964,-3077.78,0.00059178,120]
[342793792,1732140841973,-656.88,0.00059178,120]
[342793793,1732140841983,-1550.26,0.00059178,120]
[342793794,1732140841992,-500.0,0.00059178,120]
[342793795,1732140842001,-725.78,0.00059178,120]
[342793796,1732140842011,-5411.3,0.00059178,120]
[342793797,1732140842022,-996.23,0.00059178,120]
[342793798,1732140842032,-4393.1,0.00059178,120]
[342793799,1732140842041,-1967.61,0.00059178,120]
[342793800,1732140842050,-535.35,0.00059178,120]
[342793801,1732140842060,-500.0,0.00059178,120]
[342793802,1732140842069,-1127.77,0.00059178,120]
[342793803,1732140842079,-580.25,0.00059178,120]
[342793804,1732140842088,-559.06,0.00059178,120]
[342793805,1732140842098,-570.31,0.00059178,120]
[342793806,1732140842108,-8863.78,0.00059178,120]
[342793807,1732140842118,-604.62,0.00059178,120]
[342793808,1732140842127,-2040.5,0.00059178,120]
[342793809,1732140842137,-1500.0,0.00059178,120]
[342793810,1732140842146,-7043.87,0.00059178,120]
[342793811,1732140842156,-2305.42,0.00059178,120]
[342793812,1732140842165,-762.69,0.00059178,120]
[342793813,1732140842177,-713.08,0.00059178,120]
[342793814,1732140842188,-1604.28,0.00059178,120]
[342793815,1732140842198,-500.0,0.00059178,120]
[342793816,1732140842207,-1101.03,0.00059178,120]
[342793817,1732140842217,-500.0,0.00059178,120]
[342793818,1732140842226,-200.20081971,0.00059178,120]
[342793819,1732140842236,-1320.75,0.00059178,120]
[342793820,1732140842245,-500.0,0.00059178,120]
[342793821,1732140842255,-221.59215189,0.00059178,120]
[342793822,1732140842265,-5594.76,0.00059178,120]
[342793823,1732140842277,-500.0,0.00059178,120]
[342793824,1732140842287,-1100.57,0.00059178,120]
[342793825,1732140842297,-918.38,0.00059178,120]
[342793826,1732140842308,-3670.68,0.00059178,120]
[342793827,1732140842318,-561.2,0.00059178,120]
[342793828,1732140842328,-2335.45865019,0.00059294,120]
[342793829,1732140842338,-450.0,0.000594,120]
[342793830,1732140842347,-263.26079848,0.00059452,7]
[342793831,1732140842357,-500.0,0.00059452,120]
[342793832,1732140842367,-789.82,0.00059452,120]
[342793833,1732140842377,-907.52,0.00059452,120]
[342793834,1732140842387,-676.32,0.00059452,120]
[342793835,1732140842397,-1495.04,0.00059452,120]
[342793836,1732140842408,-690.77,0.00059452,120]
[342793837,1732140842418,-500.0,0.00059452,120]
[342793838,1732140842428,-500.0,0.00059452,120]
[342793839,1732140842439,-380.39843973,0.00059452,120]
[342793840,1732140842449,-802.91,0.00059452,120]
[342793841,1732140842459,-1078.99,0.00059452,120]
[342793842,1732140842470,-1196.86,0.00059452,120]
[342793843,1732140842480,-1553.66,0.00059452,120]
[342793844,1732140842490,-500.0,0.00059452,120]
[342793845,1732140842500,-500.0,0.00059452,120]
[342793846,1732140842510,-1468.02,0.00059452,120]
[342793847,1732140842523,-500.0,0.00059452,120]
[342793848,1732140842533,-1204.33,0.00059452,120]
[342793849,1732140842543,-689.54,0.00059452,120]
[342793850,1732140842554,-500.0,0.00059452,120]
[342793851,1732140842563,-500.0,0.00059452,120]
[342793852,1732140842573,-500.0,0.00059452,120]
[342793853,1732140842583,-3362.7,0.00059452,120]
[342793854,1732140842592,-454.69826633,0.00059452,120]
[342793855,1732140842602,-2907.27,0.00059452,120]
[342793856,1732140842612,-1034.08,0.00059452,120]
[342793857,1732140842621,-500.0,0.00059452,120]
[342793858,1732140842631,-691.51,0.00059452,120]
[342793859,1732140842641,-577.45,0.00059452,120]
[342793860,1732140842651,-1141.42,0.00059452,120]
[342793861,1732140842662,-1067.52,0.00059452,120]
[342793862,1732140842672,-1047.06,0.00059452,120]
[342793863,1732140842682,-1588.94,0.00059452,120]
[342793864,1732140842692,-826.46,0.00059452,120]
[342793865,1732140842702,-883.47,0.00059452,120]
[342793866,1732140842712,-196.00752993,0.00059452,120]
[342793867,1732140842721,-1125.72,0.00059452,120]
[342793868,1732140842733,-1116.01,0.00059452,120]
[342793869,1732140842743,-1198.91,0.00059452,120]
[342793870,1732140842752,-1410.51,0.00059452,120]
[342793871,1732140842762,-508.72,0.00059452,120]
[342793872,1732140842774,-500.0,0.00059452,120]
[342793873,1732140842784,-501.02,0.00059452,120]
[342793874,1732140842794,-854.5,0.00059452,120]
[342793875,1732140842804,-500.0,0.00059452,120]
[342793876,1732140842814,-923.86,0.00059452,120]
[342793877,1732140842823,-500.0,0.00059452,120]
[342793878,1732140842834,-500.0,0.00059452,60]
[342793879,1732140842844,-810.6,0.00059452,120]
[342793880,1732140842854,-1843.46,0.00059452,120]
[342793881,1732140842864,-909.22,0.00059452,120]
[342793882,1732140842874,-533.52,0.00059452,120]
[342793883,1732140842884,-2415.23,0.00059452,120]
[342793884,1732140842893,-972.8,0.00059452,120]
[342793885,1732140842904,-1624.46,0.00059452,120]
[342793886,1732140842914,-530.46,0.00059452,120]
[342793887,1732140842923,-730.89,0.00059452,120]
[342793888,1732140842934,-615.39,0.00059452,120]
[342793889,1732140842944,-500.0,0.00059452,120]
[342793890,1732140842954,-515.66,0.00059452,120]
[342793891,1732140842964,-783.6,0.00059452,120]
[342793892,1732140842975,-713.08,0.00059452,120]
[342793893,1732140842984,-524.36,0.00059452,120]
[342793894,1732140842995,-1852.69,0.00059452,120]
[342793895,1732140843004,-500.0,0.00059452,120]
[342793896,1732140843015,-729.05,0.00059452,120]
[342793897,1732140843026,-2435.5,0.00059452,120]
[342793898,1732140843036,-521.8,0.00059452,120]
[342793899,1732140843046,-642.48,0.00059452,120]
[342793900,1732140843056,-849.85,0.00059452,120]
[342793901,1732140843066,-627.45,0.00059452,120]
[342793902,1732140843076,-858.26,0.00059452,120]
[342793903,1732140843085,-503.51,0.00059452,120]
[342793904,1732140843095,-742.62,0.00059452,120]
[342793905,1732140843386,-2800.08,0.00059452,120]
[342793906,1732140843397,-161.50474162,0.00059452,120]
[342793907,1732140843408,-563.45,0.00059452,120]
[342793908,1732140843418,-1104.08,0.00059452,120]
[342793909,1732140843429,-1222.85,0.00059452,120]
[342793910,1732140843440,-1021.61,0.00059452,120]
[342793911,1732140843450,-578.33,0.00059452,120]
[342793912,1732140843460,-1661.17,0.00059452,120]
[342793913,1732140843470,-800.14,0.00059452,120]
[342793914,1732140843480,-500.0,0.00059452,120]
[342793915,1732140843490,-1090.19,0.00059452,120]